bitfinex/quotes_ETHUSD_20240819
["timestamp","ask_amount","ask_price","bid_price","bid_amount"]
[1724046864756,19.71,2627.6,2627.1,2.3745]
[1724046864987,0.06638217,2627.5,2627.3,2.66431]
[1724046865171,27.636755,2627.7,2627.3,2.66431]
[1724046865484,0.06645288,2627.6,2627.3,2.66431]
[1724046865991,0.06645288,2627.6,2627.2,2.66434]
[1724046867093,0.06645288,2627.6,2627.3,2.66432]
[1724046868795,0.06645288,2627.6,2627.4,2.66422]
[1724046869001,0.06645288,2627.6,2627.4,5.32837]
[1724046869180,0.06645288,2627.6,2627.5,5.03862]
[1724046870379,19.71,2627.8,2627.5,5.03862]
[1724046870693,0.06660199,2627.7,2627.5,2.3745]
[1724046871062,19.71,2627.8,2627.5,2.3745]
[1724046871270,0.06656375,2627.6,2627.5,2.3745]
[1724046871598,0.06656375,2627.6,2627.5,5.0386]
[1724046871792,19.71,2627.8,2627.5,5.0386]
[1724046871992,0.06660199,2627.7,2627.5,5.0386]
[1724046872307,19.71,2627.8,2627.5,5.0386]
[1724046872517,0.06656375,2627.6,2627.5,5.0386]
[1724046872725,19.71,2627.8,2627.6,2.66396]
[1724046873466,0.06660199,2627.7,2627.6,2.66396]
[1724046873803,19.71,2627.8,2627.5,5.808875]
[1724046873804,19.71,2627.8,2627.7,2.66392]
[1724046873995,0.06664023,2627.8,2627.7,5.32777]
[1724046874198,7.29,2628.1,2627.8,2.66375]
[1724046874507,0.06674914,2628.0,2627.9,5.0663]
[1724046874867,19.71,2628.3,2627.9,5.0663]
[1724046875080,0.06679105,2628.0,2627.9,5.0663]
[1724046875277,19.71,2628.3,2627.9,5.0663]
[1724046875479,0.06680051,2628.0,2627.7,4.96365]
[1724046875682,23.51945125,2628.3,2627.7,4.96365]
[1724046875889,0.06676228,2627.9,2627.7,7.6275]
[1724046876092,23.51945125,2628.3,2627.7,7.6275]
[1724046876093,23.51945125,2628.3,2627.8,2.66378]
[1724046876369,19.71,2628.3,2627.8,2.66378]
[1724046877082,0.06687697,2628.2,2627.8,2.66378]
[1724046877505,19.71,2628.3,2627.8,2.66378]
[1724046877707,0.06683875,2628.1,2627.8,2.66378]
[1724046878008,0.06680051,2628.0,2627.8,2.66378]
[1724046878170,19.71,2628.3,2627.8,2.66378]
[1724046878504,0.06687697,2628.2,2627.7,2.2998]
[1724046878670,0.06687697,2628.2,2627.7,4.96369]
[1724046879679,2.66355,2628.1,2627.4,5.07271]
[1724046879885,0.77598686,2628.1,2627.4,5.07271]
[1724046880128,0.06680051,2628.0,2627.4,5.07271]
[1724046880296,2.73049051,2628.0,2627.2,4.93315]
[1724046880626,5.13103,2627.8,2627.2,4.93315]
[1724046880987,0.06674182,2627.7,2627.2,4.93315]
[1724046881437,0.06674182,2627.7,2627.2,7.59751]
[1724046881722,0.06674182,2627.7,2627.2,4.93315]
[1724046881923,0.06674182,2627.7,2627.2,7.59751]
[1724046882582,0.06674182,2627.7,2627.3,2.66429]
[1724046882795,5.04339,2628.0,2627.3,2.66429]
[1724046883111,0.0668183,2627.9,2627.3,2.66429]
[1724046883617,0.0668183,2627.9,2627.4,2.66415]
[1724046885622,0.0668183,2627.9,2627.4,5.32831]
[1724046886127,0.0668183,2627.9,2627.5,2.66411]
[1724046886473,0.0668183,2627.9,2627.4,5.32831]
[1724046886673,0.0668183,2627.9,2627.5,2.66412]
[1724046887930,0.0668183,2627.9,2627.4,2.66415]
[1724046887931,0.0668183,2627.9,2627.6,2.664]
[1724046888139,0.0668183,2627.9,2627.6,2.66395]
[1724046888305,0.0668183,2627.9,2627.7,2.6639]
[1724046888492,0.0668183,2627.9,2627.8,2.66382]
[1724046888806,0.06674064,2627.9,2627.8,2.66382]
[1724046889017,3.01632813,2628.2,2627.8,2.66382]
[1724046889221,0.06681711,2628.1,2627.8,2.66382]
[1724046890200,0.06681711,2628.1,2627.9,2.66366]
[1724046890429,19.71,2628.3,2628.0,2.3989]
[1724046890634,0.06687697,2628.2,2628.0,2.3989]
[1724046890797,19.71,2628.3,2628.0,2.3989]
[1724046891130,0.06687697,2628.2,2628.0,5.06252]
[1724046891293,0.06687697,2628.2,2628.0,2.66362]
[1724046891493,19.71,2628.3,2628.0,2.66362]
[1724046891699,0.06681299,2628.1,2628.0,2.66362]
[1724046892034,0.06682379,2628.1,2627.8,5.06268]
[1724046892234,22.37333,2628.3,2627.8,5.06268]
[1724046892433,0.06686202,2628.2,2627.8,6.36568]
[1724046892633,19.71,2628.3,2628.0,2.66356]
[1724046892936,0.06686202,2628.2,2628.0,2.66356]
[1724046893299,19.71,2628.3,2628.0,2.66356]
[1724046893498,0.06682516,2628.1,2628.0,2.66356]
[1724046893703,19.71,2628.3,2628.0,2.66356]
[1724046893899,0.06675639,2628.1,2628.0,2.66356]
[1724046894100,29.66312,2628.5,2627.8,6.3657]
[1724046894417,5.629522,2628.4,2627.8,6.3657]
[1724046894599,2.73023304,2628.3,2627.8,5.0627]
[1724046894950,6.42473304,2628.3,2627.6,2.3513]
[1724046895147,5.05518,2628.0,2627.3,5.01556]
[1724046895443,0.06694312,2627.9,2627.3,5.517116]
[1724046895643,19.77694312,2627.9,2627.3,5.517116]
[1724046896454,19.77694312,2627.9,2627.5,2.66411]
[1724046896737,19.77694312,2627.9,2627.7,2.66386]
[1724046898029,19.77694312,2627.9,2627.6,2.66393]
[1724046898559,19.77694312,2627.9,2627.6,5.32789]
[1724046899132,19.77694312,2627.9,2627.7,2.66392]
[1724046899433,20.56518475,2627.9,2627.7,2.66392]
[1724046899625,20.56518475,2627.9,2627.7,5.04812]
[1724046899934,0.06694312,2627.9,2627.7,5.04812]
[1724046900141,0.85518475,2627.9,2627.7,5.04812]
[1724046900345,1.24930556,2627.9,2627.7,2.3842]
[1724046900548,0.79161983,2627.8,2627.7,5.04812]
[1724046901049,0.06686066,2627.8,2627.7,5.88984203]
[1724046902043,0.06686066,2627.8,2627.7,8.55376203]
[1724046902757,0.79161983,2628.0,2627.9,2.66372]
[1724046903249,1.18236244,2628.1,2627.9,2.66372]
[1724046903450,0.79161742,2628.0,2627.9,2.66372]
[1724046904050,0.79161742,2628.0,2627.7,8.55369203]
[1724046904251,0.79163109,2627.9,2627.7,7.71197]
[1724046904439,0.79163109,2628.0,2627.8,2.66382]
[1724046905932,0.79163109,2628.0,2627.9,2.66372]
[1724046906335,0.85613008,2628.0,2627.9,2.66372]
[1724046906940,0.85613008,2628.0,2627.9,5.14802]
[1724046907341,0.06449899,2628.0,2627.9,5.14802]
[1724046907960,1.24686143,2628.0,2627.9,5.14802]
[1724046908358,0.48058382,2628.0,2627.9,5.14802]
[1724046908525,0.06449899,2628.0,2627.9,5.9796825]
[1724046908750,0.8565707,2628.0,2627.9,8.6434025]
[1724046909047,0.06449899,2628.0,2627.9,8.6434025]
[1724046909378,0.79207171,2628.2,2628.1,2.2764]
[1724046909379,0.79235724,2628.2,2628.1,2.2764]
[1724046910158,0.79235724,2628.2,2628.1,4.93992]
[1724046910733,1.59852724,2628.2,2628.1,4.93992]
[1724046911934,1.59852724,2628.2,2628.1,2.2764]
[1724046912554,1.59852724,2628.2,2628.1,4.93992]
[1724046912935,1.66309415,2628.2,2628.1,4.93992]
[1724046913372,1.24692935,2628.2,2628.1,4.93992]
[1724046913548,1.66308615,2628.2,2628.1,4.93992]
[1724046916148,1.27315634,2628.2,2628.1,7.60344]
[1724046916344,0.85699954,2628.2,2628.1,8.097432]
[1724046916757,0.06456691,2628.2,2628.1,8.097432]
[1724046917140,0.79243263,2628.3,2628.2,2.66341]
[1724046917340,0.79243263,2628.3,2628.2,3.4731532]
[1724046918170,0.79243263,2628.3,2628.2,6.1365632]
[1724046918375,0.79243263,2628.4,2628.3,2.66331]
[1724046918578,21.41093647,2628.7,2628.6,5.32602]
[1724046918579,0.79243263,2628.7,2628.6,5.32602]
[1724046918871,2.7588457,2629.0,2628.8,2.66281]
[1724046919084,0.79239658,2628.9,2628.8,2.66281]
[1724046919264,1.18236244,2628.9,2628.8,2.66281]
[1724046919453,1.18236244,2629.0,2628.9,2.66271]
[1724046919653,1.5986283,2629.0,2628.9,2.66271]
[1724046919851,1.5986283,2629.0,2628.7,5.11181]
[1724046920054,0.7920367,2628.8,2628.7,5.11181]
[1724046920670,0.84828247,2628.8,2628.7,5.11181]
[1724046921249,0.05624577,2628.8,2628.7,8.552202]
[1724046921642,1.18805505,2629.1,2628.8,2.66275]
[1724046921643,0.7920367,2628.9,2628.8,2.66275]
[1724046921986,0.7920367,2629.0,2628.9,2.66271]
[1724046922556,1.18805505,2629.0,2628.9,2.66271]
[1724046922957,0.79130769,2629.0,2628.9,2.66271]
[1724046923281,1.18805505,2629.1,2628.9,2.66271]
[1724046923793,20.89805505,2629.0,2628.7,5.11181]
[1724046923982,0.79111678,2628.9,2628.7,5.11181]
[1724046924283,0.05621907,2628.8,2628.7,5.11181]
[1724046924642,20.50111678,2629.0,2628.7,5.11181]
[1724046924643,20.50111678,2629.0,2628.8,2.66281]
[1724046924878,0.05625727,2628.9,2628.8,2.66281]
[1724046925992,0.05625727,2628.9,2628.7,5.11181]
[1724046925993,0.05625727,2628.9,2628.7,7.77465]
[1724046926184,0.05625727,2628.9,2628.7,5.11181]
[1724046926385,0.05625727,2628.9,2628.7,7.77466]
[1724046926678,0.05625727,2628.9,2628.7,7.77465]
[1724046927318,2.23080018,2628.9,2628.5,2.66309]
[1724046927478,3.04421678,2628.7,2628.1,2.66346]
[1724046927801,0.79111678,2628.6,2628.2,2.6634]
[1724046928002,0.84698799,2628.6,2628.2,2.6634]
[1724046928847,0.84698799,2628.6,2628.3,2.66331]
[1724046931389,0.84698799,2628.6,2628.1,5.05827]
[1724046931390,0.79111678,2628.5,2628.1,5.05827]
[1724046931801,0.05581516,2628.4,2628.3,2.66324]
[1724046932113,0.79111678,2628.6,2628.3,2.66324]
[1724046932305,0.05579887,2628.4,2628.3,2.66324]
[1724046932628,0.79111678,2628.6,2628.3,2.66324]
[1724046932798,0.05579887,2628.4,2628.3,2.66324]
[1724046932986,0.79111678,2628.6,2628.5,2.66311]
[1724046933210,19.71,2628.7,2628.5,2.66311]
[1724046933211,20.50111678,2628.7,2628.6,2.66301]
[1724046933395,19.71,2628.7,2628.6,2.66301]
[1724046934894,20.50111678,2628.8,2628.6,2.66301]
[1724046935089,19.71,2628.8,2628.7,2.66291]
[1724046936185,19.71,2628.8,2628.5,4.98398]
[1724046936186,20.50111678,2628.8,2628.5,7.64703]
[1724046936384,0.79111678,2628.7,2628.5,4.98395]
[1724046936620,0.79111678,2628.7,2628.5,2.66305]
[1724046937437,0.79111678,2628.6,2628.3,2.66326]
[1724046937647,0.79111678,2628.5,2628.2,2.251]
[1724046938896,0.05574144,2628.4,2628.2,2.251]
[1724046939098,0.84685822,2628.4,2628.2,2.251]
[1724046939298,0.84685822,2628.4,2628.1,2.66344]
[1724046939537,0.05574144,2628.4,2628.1,2.66344]
[1724046939699,0.84685822,2628.4,2628.1,2.66344]
[1724046939902,0.84685822,2628.4,2628.2,2.6634]
[1724046940165,0.84685822,2628.4,2628.1,2.66344]
[1724046940769,0.84685822,2628.4,2628.0,2.3631]
[1724046940975,0.79111678,2628.3,2628.0,2.3631]
[1724046941118,0.84685822,2628.4,2628.0,2.3631]
[1724046941322,0.05573735,2628.2,2628.0,2.3631]
[1724046941521,0.79111678,2628.3,2628.0,2.3631]
[1724046941832,0.05569913,2628.1,2627.9,2.66364]
[1724046942018,0.0556609,2628.0,2627.9,2.66364]
[1724046942365,0.79111678,2628.3,2627.9,2.66364]
[1724046942576,0.0556609,2628.0,2627.9,2.66364]
[1724046942771,0.79111678,2628.3,2628.0,2.6636]
[1724046943473,0.79111678,2628.3,2628.1,2.3831]
[1724046943616,0.79111678,2628.4,2628.1,5.04661]
[1724046944057,0.79111678,2628.4,2628.1,2.3831]
[1724046944274,0.79111678,2628.3,2628.1,2.3831]
[1724046946338,0.79111678,2628.3,2628.1,5.04661]
[1724046946524,1.18805505,2628.5,2628.2,2.66341]
[1724046946525,0.79111678,2628.4,2628.2,2.66341]
[1724046947573,0.79111678,2628.4,2628.3,2.66331]
[1724046947775,0.79111678,2628.4,2628.3,3.96631]
[1724046947983,0.79111678,2628.5,2628.4,2.4471]
[1724046950237,19.71,2628.6,2628.5,7.66212]
[1724046950458,0.79111678,2628.7,2628.6,2.66301]
[1724046951959,0.84504094,2628.7,2628.6,2.66301]
[1724046952126,0.05392416,2628.7,2628.6,4.96211]
[1724046952528,0.79111678,2628.8,2628.7,2.66291]
[1724046952981,0.79111678,2628.8,2628.6,2.2991]
[1724046953143,1.18894834,2628.8,2628.6,4.96211]
[1724046953341,0.41643124,2628.7,2628.6,4.96211]
[1724046953695,1.18894834,2628.8,2628.6,4.96211]
[1724046953918,1.18894834,2628.7,2628.6,4.96211]
[1724046954032,1.60536954,2628.7,2628.6,4.96211]
[1724046954231,1.57648326,2628.8,2628.6,4.96211]
[1724046954232,1.18894834,2628.8,2628.6,4.96211]
[1724046954464,1.60538307,2628.7,2628.6,4.96211]
[1724046954860,1.57648326,2628.9,2628.7,2.66291]
[1724046954861,1.18894834,2628.8,2628.7,2.66291]
[1724046955206,1.60539426,2628.8,2628.7,2.66291]
[1724046955539,0.05398955,2628.8,2628.7,5.32582]
[1724046955736,0.84688912,2628.8,2628.7,8.3730835]
[1724046957490,0.05398955,2628.8,2628.7,8.3730835]
[1724046958837,0.84688912,2628.8,2628.7,8.3730835]
[1724046959636,0.05398955,2628.8,2628.7,8.3730835]
[1724046960740,0.79289957,2629.2,2629.1,5.0872]
[1724046961267,0.79289957,2629.2,2629.0,2.66259]
[1724046961467,0.79289957,2629.1,2629.0,2.66259]
[1724046961875,0.79289957,2629.2,2629.0,2.66259]
[1724046962380,0.79289957,2629.1,2628.9,2.3112]
[1724046962580,0.79289957,2629.2,2629.0,2.6626]
[1724046962957,0.79289957,2629.1,2629.0,2.6626]
[1724046963152,0.79289957,2629.1,2628.9,2.3112]
[1724046963366,0.79289957,2629.1,2628.7,2.446]
[1724046963542,0.79289957,2629.1,2628.8,2.66281]
[1724046963543,1.6052287,2629.0,2628.8,2.66281]
[1724046963890,1.6051993,2628.9,2628.8,2.66281]
[1724046964052,1.6051993,2628.9,2628.7,2.446]
[1724046964242,0.79225536,2628.8,2628.7,2.446]
[1724046966253,1.18894834,2628.9,2628.6,2.66291]
[1724046966625,1.18894834,2628.9,2628.5,6.40278]
[1724046966626,0.7923602,2628.7,2628.5,6.40278]
[1724046967039,0.05061685,2628.6,2628.5,6.40278]
[1724046967659,0.7923602,2628.7,2628.6,2.66301]
[1724046969485,0.84292205,2628.7,2628.6,2.66301]
[1724046970285,0.05056185,2628.7,2628.6,2.66301]
[1724046971015,0.05056185,2628.7,2628.6,2.66294]
[1724046971239,0.7923602,2628.8,2628.6,2.66294]
[1724046971240,0.7923602,2628.8,2628.6,5.32589]
[1724046971359,0.7923602,2628.9,2628.7,5.12751]
[1724046971558,0.7923602,2628.8,2628.7,9.09336]
[1724046972063,0.7923602,2628.8,2628.7,6.43045]
[1724046972287,0.7923602,2628.8,2628.7,5.12745]
[1724046973398,0.7923602,2628.9,2628.7,7.7903]
[1724046974200,0.7923602,2628.9,2628.5,1.303]
[1724046974201,0.7923602,2628.8,2628.5,3.5892]
[1724046974524,0.79245707,2628.7,2628.5,2.2862]
[1724046974807,0.79245707,2628.6,2628.3,5.03787]
[1724046975115,0.79245707,2628.4,2628.1,5.03808]
[1724046975291,0.79237987,2628.3,2628.1,5.03808]
[1724046975495,0.05029741,2628.2,2628.1,5.03808]
[1724046975909,0.05028111,2628.2,2628.1,5.03808]
[1724046976361,0.79237987,2628.3,2628.1,5.03808]
[1724046976562,0.05028111,2628.2,2628.1,5.03808]
[1724046976792,0.79237987,2628.3,2628.1,5.03808]
[1724046977099,0.05028111,2628.2,2628.1,5.03808]
[1724046977464,0.79237987,2628.4,2628.2,2.2805]
[1724046977798,0.05031933,2628.3,2628.2,4.94391]
[1724046979373,0.79237987,2628.5,2628.2,4.94391]
[1724046979599,0.05023779,2628.3,2628.2,4.94391]
[1724046979891,0.79237987,2628.5,2628.2,4.94391]
[1724046980611,0.05028281,2628.4,2628.3,2.66327]
[1724046983306,0.05028281,2628.4,2628.3,9.904002]
[1724046983462,8.86648326,2628.9,2628.3,3.6864]
[1724046983463,0.79237987,2628.8,2628.3,3.6864]
[1724046983704,0.79237987,2628.8,2627.8,1.98516044]
[1724046983705,1.18894834,2628.8,2628.7,5.04631]
[1724046983984,0.79255981,2628.8,2628.7,5.04631]
[1724046987285,0.04855649,2628.8,2628.7,5.04631]
[1724046987490,0.8411163,2628.8,2628.7,5.04631]
[1724046988005,0.04855649,2628.8,2628.7,5.04631]
[1724046988229,0.8411163,2628.8,2628.7,5.04631]
[1724046989914,0.04855649,2628.8,2628.7,5.04631]
[1724046990129,0.04855649,2628.8,2628.7,5.947541]
[1724046990475,0.04855649,2628.8,2628.7,9.913451]
[1724046992400,1.18894834,2629.2,2629.0,2.2515]
[1724046992579,0.79318203,2629.1,2629.0,2.2515]
[1724046993085,0.79318203,2629.1,2629.0,7.5767]
[1724046993297,8.47894834,2629.3,2629.1,2.6625]
[1724046993508,8.47894834,2629.3,2629.2,2.6624]
[1724046993509,1.18894834,2629.3,2629.2,2.6624]
[1724046993718,1.60546538,2629.3,2629.2,2.6624]
[1724046994025,1.9930003,2629.3,2629.0,7.57662]
[1724046994253,0.79316415,2629.1,2629.0,7.57662]
[1724046994398,1.23863408,2629.2,2629.0,7.57662]
[1724046994575,0.0488581,2629.1,2629.0,4.91402]
[1724046994780,0.84200856,2629.1,2629.0,4.91402]
[1724046995116,0.0488581,2629.1,2629.0,4.91402]
[1724046995326,0.84199796,2629.1,2629.0,4.91402]
[1724046996102,0.84199796,2629.1,2629.0,7.57662]
[1724046996282,0.84199796,2629.1,2629.0,8.464592]
[1724046996843,0.0488581,2629.1,2629.0,8.464592]
[1724046997069,0.84199796,2629.1,2629.0,8.464592]
[1724046997366,0.0488581,2629.1,2629.0,8.464592]
[1724046998510,0.84199796,2629.1,2629.0,8.464592]
[1724046998710,0.0488581,2629.1,2629.0,8.464592]
[1724047000574,0.0488581,2629.1,2628.9,1.303]
[1724047000575,0.0488581,2629.1,2628.9,3.96571]
[1724047000708,1.60621513,2629.0,2628.6,2.3932]
[1724047000904,0.79276176,2628.9,2628.7,2.66284]
[1724047001105,0.79276176,2628.8,2628.7,2.66284]
[1724047001350,0.04890587,2628.8,2628.7,2.66284]
[1724047001569,0.84162095,2628.8,2628.7,2.66284]
[1724047002409,0.04890587,2628.8,2628.7,4.96674]
[1724047002808,0.84162095,2628.8,2628.7,4.96674]
[1724047004413,0.04890587,2628.8,2628.7,9.825925]
[1724047004559,0.79271508,2628.9,2628.8,2.66281]
[1724047004725,0.79269249,2628.9,2628.8,2.66281]
[1724047004919,1.18973779,2629.0,2628.8,2.66281]
[1724047005235,1.18973779,2629.0,2628.9,2.66271]
[1724047005570,1.18973779,2629.1,2628.9,2.66271]
[1724047005788,1.60619505,2629.0,2628.9,2.66271]
[1724047006077,1.60619505,2629.0,2628.7,6.26972]
[1724047006078,1.99294052,2629.0,2628.7,6.26972]
[1724047006283,1.60720667,2628.9,2628.7,2.66282]
[1724047006445,1.19074941,2628.9,2628.7,2.66282]
[1724047006765,1.57648326,2629.0,2628.5,4.99823]
[1724047006766,1.60798819,2628.8,2628.5,4.99823]
[1724047006965,0.79420955,2628.7,2628.5,4.99823]
[1724047007176,0.79420955,2628.7,2628.5,7.66127]
[1724047007523,0.79420955,2628.7,2628.6,2.66301]
[1724047008360,1.23959398,2628.7,2628.6,2.66301]
[1724047008664,1.65692836,2628.7,2628.6,2.66301]
[1724047008828,0.84325615,2628.7,2628.6,2.66301]
[1724047010060,0.04884457,2628.7,2628.6,9.777244]
[1724047010331,0.04884457,2628.7,2628.6,8.88082]
[1724047010684,0.04884457,2628.7,2628.6,2.66294]
[1724047010886,0.79441158,2628.7,2628.6,2.66294]
[1724047011038,0.84323575,2628.7,2628.6,2.66294]
[1724047012635,0.04882417,2628.7,2628.6,2.66294]
[1724047012835,1.19074941,2628.8,2628.6,2.66294]
[1724047013063,1.65678635,2628.7,2628.6,2.66294]
[1724047013445,0.8431526,2628.7,2628.6,2.66294]
[1724047013647,0.46607162,2628.7,2628.5,2.66309]
[1724047013989,1.19074941,2628.6,2628.2,2.66336]
[1724047014132,0.79424938,2628.4,2628.2,2.66336]
[1724047014334,0.84286908,2628.3,2628.2,2.66336]
[1724047014780,0.0486197,2628.3,2628.2,2.66336]
[1724047015548,0.0486197,2628.3,2628.2,9.97752771]
[1724047015744,0.79424938,2628.7,2628.5,5.10051]
[1724047016049,0.84291305,2628.6,2628.5,5.10051]
[1724047019555,0.46589791,2628.6,2628.5,5.10051]
[1724047019883,0.04866367,2628.6,2628.5,5.10051]
[1724047020489,0.84281144,2628.6,2628.5,5.10051]
[1724047021277,0.84281144,2628.6,2628.4,2.66321]
[1724047021278,1.65717752,2628.6,2628.4,2.66321]
[1724047021489,1.24003774,2628.6,2628.4,2.66321]
[1724047021787,0.79406756,2628.5,2628.4,2.66315]
[1724047021956,0.84093799,2628.5,2628.4,2.66315]
[1724047023162,0.46397724,2628.5,2628.4,2.66315]
[1724047023690,1.65535978,2628.5,2628.2,7.7666821]
[1724047023892,0.79407861,2628.4,2628.2,7.7666821]
[1724047024063,0.79407861,2628.4,2628.3,2.66331]
[1724047025405,0.79407861,2628.5,2628.4,2.66321]
[1724047025756,0.79407861,2628.5,2628.4,4.98481]
[1724047026955,0.84096944,2628.5,2628.4,4.98481]
[1724047027157,0.04689083,2628.5,2628.4,8.41946321]
[1724047027553,0.79407861,2628.7,2628.6,2.66301]
[1724047027761,0.79407861,2628.7,2628.5,2.4445]
[1724047027762,0.79407861,2628.8,2628.7,5.10741]
[1724047028024,0.79407861,2628.8,2628.7,7.77032]
[1724047028301,1.19137407,2628.9,2628.8,2.66281]
[1724047028302,0.79407861,2628.9,2628.8,2.66281]
[1724047029301,1.19137407,2629.0,2628.9,2.66271]
[1724047029504,1.60856886,2629.0,2628.9,2.66271]
[1724047029797,0.41719479,2629.0,2628.9,2.66271]
[1724047030001,1.60879996,2629.0,2628.9,2.66271]
[1724047030211,1.99367805,2629.0,2628.9,2.66271]
[1724047030393,1.99367805,2629.0,2628.8,2.66281]
[1724047030574,1.6087558,2628.9,2628.8,2.66281]
[1724047030781,2.04067066,2628.9,2628.8,2.66281]
[1724047031465,0.4641874,2628.9,2628.8,2.66281]
[1724047032916,1.65574966,2628.9,2628.8,2.66281]
[1724047036208,2.04067066,2628.9,2628.8,2.66281]
[1724047036404,0.4641874,2628.9,2628.8,2.66281]
[1724047036606,1.65573772,2628.9,2628.8,2.66281]
[1724047036985,1.23854293,2628.9,2628.8,2.66281]
[1724047037302,1.65571482,2628.9,2628.8,2.66281]
[1724047037703,0.4641645,2628.9,2628.8,2.66281]
[1724047037878,0.4641645,2628.9,2628.8,7.65942]
[1724047037879,0.84140919,2628.9,2628.8,7.65942]
[1724047038090,0.04699261,2628.9,2628.8,7.65942]
[1724047038302,0.84140919,2628.9,2628.8,7.65942]
[1724047040332,0.04699261,2628.9,2628.8,8.555562]
[1724047040828,0.79441658,2629.1,2629.0,2.6626]
[1724047041529,0.79441658,2629.1,2629.0,7.7361]
[1724047041530,0.83831214,2629.1,2629.0,7.7361]
[1724047041826,0.04389556,2629.1,2629.0,8.7295242]
[1724047042619,0.83831214,2629.1,2629.0,8.7295242]
[1724047043012,0.83831214,2629.1,2629.0,7.7361]
[1724047043238,0.04389556,2629.1,2629.0,7.7361]
[1724047043738,0.46110748,2629.1,2629.0,7.7361]
[1724047043938,0.04389556,2629.1,2629.0,7.7361]
[1724047044643,1.65263791,2629.1,2629.0,7.7361]
[1724047044840,0.46108759,2629.1,2629.0,7.7361]
[1724047045041,0.83838295,2629.1,2629.0,7.7361]
[1724047047928,0.46108868,2629.1,2629.0,7.7361]
[1724047048456,0.83835914,2629.1,2629.0,7.7361]
[1724047049513,0.83835914,2629.1,2629.0,2.6626]
[1724047049514,1.23544588,2629.1,2629.0,2.6626]
[1724047049713,2.01326734,2629.1,2628.9,2.66269]
[1724047049913,0.41718219,2629.0,2628.9,2.66269]
[1724047050157,1.60873251,2629.0,2628.9,2.66269]
[1724047050462,1.65286229,2629.0,2628.8,5.32549]
[1724047050664,0.79429357,2628.9,2628.8,5.32549]
[1724047050832,0.83838516,2628.9,2628.8,5.32549]
[1724047052452,0.04409159,2628.9,2628.8,2.66274]
[1724047052655,0.83835008,2628.9,2628.8,2.66274]
[1724047053573,0.04409159,2628.9,2628.8,2.66274]
[1724047053866,0.04409159,2628.9,2628.8,7.78645]
[1724047054444,0.04409159,2628.9,2628.8,9.08845]
[1724047055969,0.04409159,2628.9,2628.8,9.997295]
[1724047056177,0.04409159,2628.9,2628.8,18.872915]
[1724047056329,0.04409159,2628.9,2628.8,20.19587578]
[1724047056528,0.79425849,2629.7,2629.6,7.7079]
[1724047056750,1.19155032,2629.8,2629.6,7.7079]
[1724047056751,0.79425849,2629.8,2629.7,5.3238]
[1724047057331,0.79425849,2629.9,2629.8,2.66179]
[1724047057536,0.79386407,2629.9,2629.8,2.66179]
[1724047057750,0.79386407,2629.9,2629.8,5.32358]
[1724047057959,0.79386407,2629.9,2629.8,6.62558]
[1724047058141,1.19155032,2630.1,2630.0,2.66159]
[1724047058142,0.79386407,2630.1,2630.0,2.66159]
[1724047058443,0.79386407,2630.3,2630.2,2.66139]
[1724047058645,0.71089017,2630.3,2630.2,2.66139]
[1724047058874,0.71089017,2630.3,2630.2,5.32278]
[1724047058875,0.79339918,2630.3,2630.2,5.32278]
[1724047059031,0.79339918,2630.5,2630.2,2.66139]
[1724047059543,0.79339918,2630.6,2630.4,2.66119]
[1724047059743,0.36134108,2630.5,2630.4,2.66119]
[1724047060075,1.19941174,2630.5,2630.4,2.66119]
[1724047060274,1.59756288,2630.5,2630.2,2.66139]
[1724047060436,0.23909621,2630.4,2630.2,2.66139]
[1724047060636,0.28372953,2630.4,2630.2,2.66139]
[1724047060839,1.07657921,2630.4,2630.2,2.66139]
[1724047061350,0.28372953,2630.4,2630.2,2.66139]
[1724047061941,0.04463332,2630.4,2630.2,2.66139]
[1724047063159,0.79284968,2630.6,2630.2,2.66139]
[1724047063488,0.79284968,2630.6,2630.3,2.66128]
[1724047063697,0.04468006,2630.5,2630.3,2.66128]
[1724047064926,1.63822688,2630.7,2630.3,2.66121]
[1724047065186,0.04474492,2630.4,2630.3,2.66122]
[1724047065398,3.38904605,2630.7,2630.3,2.66122]
[1724047066686,3.38904605,2630.7,2630.2,2.66131]
[1724047066840,3.38904605,2630.7,2630.2,5.32263]
[1724047066841,1.19639206,2630.6,2630.2,5.32263]
[1724047067354,0.04475745,2630.5,2630.3,2.66128]
[1724047068295,22.98704968,2630.8,2630.2,2.66131]
[1724047068477,0.04472787,2630.4,2630.2,2.66131]
[1724047068642,0.79284968,2630.7,2630.2,2.66131]
[1724047068857,0.79284968,2630.7,2630.2,5.32264]
[1724047068858,0.04468971,2630.3,2630.2,5.32264]
[1724047069044,4.60230093,2630.7,2630.3,2.66128]
[1724047069239,0.79284968,2630.7,2630.1,2.3268]
[1724047069461,3.59165481,2630.6,2630.1,2.66147]
[1724047070893,0.04482399,2630.5,2630.1,2.66147]
[1724047071109,0.04482399,2630.5,2630.1,5.32289]
[1724047071317,0.04482399,2630.5,2630.1,2.66142]
[1724047073368,1.83145697,2630.5,2630.1,2.66142]
[1724047080531,1.83145697,2630.5,2630.1,3.96242]
[1724047080857,1.83145697,2630.5,2630.2,2.3487]
[1724047081370,0.04482399,2630.5,2630.3,3.96222]
[1724047081871,0.04489633,2630.4,2630.3,3.96222]
[1724047082163,0.79284968,2630.8,2630.4,2.66119]
[1724047083232,3.83820865,2630.7,2630.3,1.301]
[1724047083454,3.88321944,2630.7,2630.2,5.01001]
[1724047084085,2.78017698,2630.6,2630.2,2.66131]
[1724047084231,2.82517742,2630.6,2630.2,2.66131]
[1724047085384,3.6180271,2630.6,2630.2,2.66131]
[1724047086572,3.96209,2630.5,2629.8,2.2655]
[1724047086737,4.38636729,2630.5,2629.9,3.96263]
[1724047086935,0.04496223,2630.4,2629.9,1.301]
[1724047087769,0.04496223,2630.4,2630.0,2.66153]
[1724047089585,0.83781191,2630.4,2630.0,2.66153]
[1724047091622,0.83781191,2630.4,2630.1,2.4321]
[1724047091818,0.04496223,2630.4,2630.1,5.09359]
[1724047093384,0.83781191,2630.4,2630.1,2.4321]
[1724047096360,0.79284968,2630.3,2630.1,2.4321]
[1724047096658,0.04488591,2630.2,2630.1,2.4321]
[1724047096955,0.79284968,2630.3,2630.1,2.4321]